bitfinex-derivatives/quotes_ETHF0:USTF0_20260119
["timestamp","ask_amount","ask_price","bid_price","bid_amount"]
[1768781038548,0.10811787,3249.0,3247.4,0.00232381]
[1768781038951,0.00462192,3249.0,3247.4,0.00232381]
[1768781039758,0.00462192,3249.0,3247.9,0.00462192]
[1768781040355,6.09668799,3249.0,3247.4,0.00232381]
[1768781040555,0.09668799,3249.0,3245.4,0.22451155]
[1768781040756,0.00462192,3249.0,3245.4,0.22451155]
[1768781041057,0.00462192,3249.0,3246.3,0.22451155]
[1768781041365,0.00462192,3249.0,3246.5,0.22451155]
[1768781041564,0.00462192,3249.0,3247.4,0.22451155]
[1768781041760,0.00271524,3250.8,3247.4,0.22451155]
[1768781042059,0.00271524,3250.8,3247.6,0.22451155]
[1768781042256,0.08653215,3250.8,3247.6,0.22451155]
[1768781042454,0.08381691,3250.3,3247.6,1.54183657]
[1768781042849,0.08202333,3249.4,3247.6,1.54183657]
[1768781043060,0.00462192,3249.3,3247.6,1.54183657]
[1768781043456,0.76456036,3249.0,3247.6,1.54183657]
[1768781043650,0.76456036,3248.8,3247.6,1.54183657]
[1768781043954,0.08664525,3249.3,3247.6,1.54183657]
[1768781043955,0.76456036,3248.1,3247.6,1.45981324]
[1768781044156,0.00249973,3248.1,3247.6,1.45583033]
[1768781044356,0.76456036,3247.7,3247.6,0.14615414]
[1768781044555,0.00462192,3249.3,3247.6,0.14615414]
[1768781045555,0.0075081,3249.3,3247.6,0.14615414]
[1768781046463,6.0075081,3249.3,3247.6,0.13774377]
[1768781046658,0.15396,3248.7,3247.6,0.13774377]
[1768781047154,6.15396,3248.7,3247.6,0.13774377]
[1768781047357,0.0075081,3249.3,3247.6,0.13774377]
[1768781048863,0.0075081,3249.3,3247.6,0.36225532]
[1768781049059,0.15383,3251.4,3247.8,0.22451155]
[1768781049564,0.29329605,3252.5,3248.0,0.22451155]
[1768781049762,0.15384,3251.2,3248.0,0.22451155]
[1768781050071,0.15388,3250.3,3247.6,0.13774377]
[1768781050363,0.00462192,3249.9,3249.3,0.00462192]
[1768781050557,0.00462192,3249.9,3249.3,0.00684058]
[1768781050759,6.0,3249.8,3247.6,0.13774377]
[1768781050953,0.00462192,3249.9,3247.6,0.13774377]
[1768781051153,0.00462192,3249.9,3247.7,0.22451155]
[1768781051369,0.00462192,3249.9,3247.7,3.66938756]
[1768781051565,0.00462192,3249.9,3247.8,0.22451155]
[1768781051865,0.00462192,3249.9,3247.8,0.22776602]
[1768781052168,0.00462192,3249.9,3248.5,0.00462192]
[1768781052567,0.00272312,3251.2,3248.5,0.00462192]
[1768781052568,0.00272312,3251.2,3248.7,0.22451155]
[1768781052773,0.00272312,3251.2,3248.8,0.22451155]
[1768781053062,1.37256844,3253.1,3249.3,0.22451155]
[1768781053063,0.15377,3252.6,3249.3,0.22451155]
[1768781053264,1.37256844,3253.1,3249.3,0.22451155]
[1768781053465,1.37256844,3253.1,3249.8,0.22451155]
[1768781053972,0.00461411,3251.3,3250.6,0.00461411]
[1768781054268,0.00461411,3251.3,3250.6,0.00827765]
[1768781055067,0.00461411,3251.3,3249.7,0.80783156]
[1768781055267,0.00461411,3251.3,3249.8,0.22451155]
[1768781055769,1.37620495,3253.1,3250.0,0.22451155]
[1768781056175,1.37620495,3253.1,3250.0,0.2266707]
[1768781056372,1.37620495,3253.1,3250.5,0.22451155]
[1768781056672,1.37620495,3253.1,3250.6,0.22451155]
[1768781057172,1.37620495,3253.1,3251.5,0.22912566]
[1768781057364,1.37620495,3253.1,3251.6,0.22451155]
[1768781057674,0.76341003,3255.9,3251.7,0.22451155]
[1768781057875,0.8145451,3255.8,3251.7,0.22451155]
[1768781058169,0.15363,3255.7,3252.0,0.37831155]
[1768781058370,0.15359,3256.4,3252.5,0.22451155]
[1768781058560,0.00229346,3256.4,3252.6,0.22451155]
[1768781058758,0.00307645,3254.2,3253.5,0.00461411]
[1768781058959,0.15588346,3256.4,3253.5,0.00461411]
[1768781058960,0.00229346,3256.4,3253.5,0.57799073]
[1768781059165,0.00229346,3256.4,3253.7,0.22451155]
[1768781060165,0.15361,3256.2,3253.7,0.22451155]
[1768781060470,0.00229346,3256.4,3253.7,0.22451155]
[1768781060968,0.00229346,3256.4,3253.5,0.35347918]
[1768781060969,0.15363,3255.6,3253.5,0.35347918]
[1768781061368,0.00229346,3256.4,3253.6,0.22451155]
[1768781061972,0.00229346,3256.4,3253.7,0.22451155]
[1768781062671,0.00229346,3256.4,3254.3,0.37952663]
[1768781062875,0.00229346,3256.4,3254.4,0.22583663]
[1768781063170,0.00229346,3256.4,3254.5,0.22583663]
[1768781063369,0.00229346,3256.4,3254.5,0.21965063]
[1768781064271,0.00614,3257.4,3254.7,0.15367]
[1768781064572,0.00614,3257.4,3254.8,3.3287371]
[1768781064771,0.76958652,3259.9,3255.7,0.00460681]
[1768781064973,0.1535,3258.5,3255.7,0.00460681]
[1768781065278,0.15351,3258.3,3255.7,0.22816928]
[1768781065574,0.00310283,3258.5,3256.8,0.00460681]
[1768781066171,0.76958652,3261.3,3257.0,0.22583663]
[1768781066376,0.15339,3260.8,3257.0,0.22583663]
[1768781066576,0.006132,3261.4,3257.6,0.22583663]
[1768781066780,0.15338,3261.0,3257.7,0.22583663]
[1768781066975,0.15341,3260.4,3257.7,0.22583663]
[1768781067178,0.15343,3260.1,3257.7,0.22583663]
[1768781067381,0.00284717,3260.4,3257.7,0.22583663]
[1768781067578,0.15345,3259.6,3257.6,0.45595291]
[1768781067780,0.00284717,3260.4,3257.6,0.45595291]
[1768781068085,0.15346,3259.3,3257.6,0.45595291]
[1768781068271,0.00284717,3260.4,3257.6,0.45595291]
[1768781068472,0.00458248,3258.8,3258.1,0.00460681]
[1768781068672,0.15807248,3258.8,3257.6,0.45595291]
[1768781069074,0.00458248,3258.8,3257.6,0.45595291]
[1768781069377,0.15349,3258.6,3256.9,0.22583663]
[1768781069584,0.00458248,3258.8,3256.9,0.00349905]
[1768781069771,0.00458248,3258.8,3257.0,0.22583663]
[1768781069972,0.00284717,3260.4,3257.8,0.22583663]
[1768781070176,0.00284717,3260.4,3258.3,0.37934663]
[1768781070380,0.15329,3262.9,3259.2,0.22583663]
[1768781070582,0.15334,3262.0,3259.3,0.22583663]
[1768781070975,0.1533,3262.9,3259.4,0.22583663]
[1768781071272,0.15335,3261.9,3260.1,0.67802199]
[1768781071477,0.00935275,3261.4,3260.1,0.45218536]
[1768781072681,0.15338,3261.3,3260.1,0.45218536]
[1768781072875,0.00935275,3261.4,3260.1,0.45218536]
[1768781073479,0.00935275,3261.4,3260.1,0.67802199]
[1768781073875,0.0046,3261.1,3257.8,0.46121343]
[1768781074075,0.0046,3261.1,3257.9,0.22583663]
[1768781074287,0.0046,3261.1,3258.2,0.22583663]
[1768781074479,0.0046,3261.1,3258.4,0.22583663]
[1768781074674,0.0046,3261.1,3258.8,0.22583663]
[1768781074870,0.0046,3261.1,3259.6,0.00460681]
[1768781075076,0.0046,3261.1,3259.6,0.23044344]
[1768781075479,6.0046,3261.1,3259.6,6.81e-06]
[1768781075681,6.0046,3261.1,3258.8,0.35399838]
[1768781075880,0.15341,3260.6,3258.9,0.22583663]
[1768781076073,0.0046,3261.1,3258.9,0.22583663]
[1768781076471,0.0046,3261.1,3259.1,0.22583663]
[1768781076783,0.0046,3261.1,3259.9,0.22583663]
[1768781076975,0.00935275,3261.4,3260.0,0.22583663]
[1768781077589,0.16273275,3261.4,3260.0,0.22583663]
[1768781078092,0.00935275,3261.4,3260.0,0.22583663]
[1768781078273,0.00460681,3261.0,3260.0,0.22583663]
[1768781078584,6.81e-06,3261.0,3260.0,0.22583663]
[1768781079084,0.00935275,3261.4,3260.0,0.22583663]
[1768781079277,0.15332,3262.6,3260.0,0.22583663]
[1768781079475,0.29547565,3264.1,3260.0,0.21963563]
[1768781079677,0.15323,3264.4,3260.0,0.21963563]
[1768781079978,0.15336,3261.7,3260.0,0.21963563]
[1768781080174,3.091,3264.2,3260.0,0.21963563]
[1768781080377,3.091,3264.0,3260.5,0.00459939]
[1768781080588,0.15335,3262.0,3260.5,0.00459939]
[1768781080776,0.15326,3263.7,3260.5,0.00459939]
[1768781080971,3.091,3263.0,3260.5,9.39e-06]
[1768781081184,0.15344,3260.0,3259.9,3.71e-06]
[1768781081485,0.15346,3259.6,3258.8,0.03525838]
[1768781081688,0.0030767,3260.0,3258.8,0.03525838]
[1768781081875,0.15346,3259.6,3258.8,8.38e-06]
[1768781082188,0.0030767,3260.0,3258.8,8.38e-06]
[1768781082373,0.15348,3259.2,3257.5,0.21366623]
[1768781082580,0.15335,3261.9,3256.4,2.149]
[1768781082581,3.091,3262.2,3258.2,0.21366623]
[1768781082881,1.98778441,3263.8,3259.0,0.21366623]
[1768781083083,1.98778441,3263.8,3259.4,0.21366623]
[1768781083386,1.02604682,3264.6,3260.4,0.21366623]
[1768781083387,1.98778441,3264.6,3260.4,0.21366623]
[1768781083579,0.15332,3262.6,3260.5,0.21366623]
[1768781083780,0.15332,3262.5,3260.5,0.21366623]
[1768781083984,3.091,3263.7,3260.5,0.21366623]
[1768781083985,3.091,3263.7,3262.2,9.39e-06]
[1768781084176,5.07878441,3263.7,3262.2,9.39e-06]
[1768781084379,0.15338,3261.2,3260.4,0.28460801]
[1768781084575,0.15341,3260.5,3258.8,0.21366623]
[1768781084775,3.09419592,3261.2,3258.8,0.21366623]
[1768781085086,0.15343,3260.3,3259.1,0.21366623]
[1768781085482,0.00459939,3260.0,3259.4,0.00459939]
[1768781085783,0.15657592,3261.2,3259.5,0.21366623]
[1768781086088,0.00319592,3261.2,3259.5,0.21366623]
[1768781086278,0.00319592,3261.2,3259.4,0.00691772]
[1768781086479,0.76411904,3263.5,3259.9,0.21366623]
[1768781086680,0.15335,3261.9,3260.0,0.21366623]
[1768781086983,1.98778441,3263.6,3260.0,0.21366623]
[1768781087189,1.98778441,3263.6,3259.9,0.59388177]
[1768781087190,1.98778441,3262.9,3260.6,9.39e-06]
[1768781087381,0.15339,3261.0,3260.6,9.39e-06]
[1768781087577,0.15339,3261.0,3259.9,0.59388177]
[1768781087578,0.00459939,3261.3,3260.0,0.21366623]
[1768781088488,0.15331,3262.8,3260.0,0.21366623]
[1768781088679,0.00305949,3262.8,3260.0,0.21366623]
[1768781089196,0.15336,3261.7,3260.0,0.21366623]
[1768781089380,0.15332,3262.6,3260.0,0.21366623]
[1768781089690,0.15332,3262.6,3260.6,0.21366623]
[1768781089997,0.15332,3262.6,3260.7,0.21366623]
[1768781090490,0.00305949,3262.8,3260.7,0.21366623]
[1768781090788,0.1534,3260.8,3259.9,1.55e-06]
[1768781090975,0.15335,3261.8,3259.9,0.21366778]
[1768781091289,0.15331,3262.7,3260.3,0.21366623]
[1768781091476,0.15335,3261.9,3260.3,0.21366623]
[1768781091680,0.00305949,3262.8,3259.9,1.55e-06]
[1768781091880,0.15335,3261.9,3259.9,1.55e-06]
[1768781092177,0.00305949,3262.8,3259.9,1.55e-06]
[1768781092382,3.091,3262.2,3259.9,1.55e-06]
[1768781092583,3.86583078,3262.0,3259.9,1.55e-06]
[1768781092883,3.86583078,3261.7,3259.0,0.28329659]
[1768781093092,0.15342,3260.5,3259.1,0.20106923]
[1768781093276,0.00459939,3260.7,3260.0,9.39e-06]
[1768781093679,3.091,3260.6,3259.0,1.7e-06]
[1768781093885,0.15345,3259.8,3259.0,1.7e-06]
[1768781094382,0.00308618,3259.8,3259.0,7.484e-05]
[1768781094684,0.00308618,3259.8,3257.2,1.98778441]
[1768781094878,0.00308618,3259.8,3259.1,9.39e-06]
[1768781095597,0.779546,3262.3,3259.2,0.20106923]
[1768781095776,0.779546,3262.7,3259.2,0.20106923]
[1768781096386,0.779546,3262.3,3259.2,0.20503489]
[1768781096585,0.779546,3262.6,3259.2,0.20503489]
[1768781096780,0.779546,3262.2,3259.2,0.20503489]
[1768781096981,0.15341,3260.6,3259.2,0.20503489]
[1768781097188,0.00459939,3261.2,3259.2,0.20503489]
[1768781098001,0.15691723,3262.7,3259.7,0.20106923]
[1768781098187,0.00360723,3262.7,3260.5,0.20106923]
[1768781098386,0.15333,3262.3,3260.5,0.20106923]
[1768781098688,0.75708561,3262.2,3259.5,0.20106923]
[1768781098889,3.091,3261.8,3259.2,0.00396566]
[1768781099089,0.00459939,3261.2,3260.5,0.00459939]
[1768781099591,0.1534,3260.9,3259.2,0.20503489]
[1768781099792,0.15341,3260.7,3259.2,0.20503489]
[1768781099990,0.15342,3260.5,3259.2,0.20503489]
[1768781100294,3.091,3261.0,3259.2,5.66e-06]
[1768781100487,0.15343,3260.1,3258.4,0.20106923]
[1768781100886,0.15343,3260.1,3258.9,0.00459939]
[1768781101292,0.1534,3260.8,3258.9,0.20566862]
[1768781101591,3.091,3262.0,3260.1,0.20106923]
[1768781101889,1.81390994,3263.5,3260.1,0.20106923]
[1768781102193,0.78435672,3263.0,3260.1,0.20106923]
[1768781102388,0.15335,3261.9,3259.3,0.20106923]
[1768781102592,0.15336,3261.7,3259.3,0.20106923]
[1768781102795,0.15339,3261.2,3259.3,0.20106923]
[1768781102990,0.15799939,3260.9,3260.3,9.39e-06]
[1768781103197,6.00459939,3260.9,3258.9,0.00299216]
[1768781103394,0.00459939,3260.9,3258.9,0.00299216]
[1768781103888,0.147427,3260.4,3258.9,0.00299216]
[1768781104284,0.147427,3260.4,3259.3,0.00459939]
[1768781104691,0.00459939,3260.9,3257.7,0.20106923]
[1768781104893,0.78304301,3260.6,3257.0,2.8569477]
[1768781105188,3.01733763,3260.8,3256.6,1.98778441]
[1768781105189,0.78304301,3260.1,3257.1,0.20106923]
[1768781105392,0.1535,3258.8,3257.1,0.20106923]
[1768781105696,0.15351,3258.5,3257.1,0.20368074]
[1768781105899,0.00310372,3258.8,3257.1,0.00261151]
[1768781106193,0.00459939,3258.3,3256.2,0.20106923]
[1768781106492,0.00459939,3258.3,3256.9,0.20106923]
[1768781106697,0.00310372,3258.8,3257.6,0.20106923]
[1768781106897,0.15345,3259.8,3257.6,0.20106923]
[1768781107292,0.27071152,3260.7,3257.6,0.20106923]
[1768781107592,3.091,3260.1,3256.8,0.20106923]
[1768781107792,3.091,3259.9,3256.8,0.20106923]
[1768781107983,0.00459939,3258.8,3256.8,0.20482291]
[1768781108181,0.00459939,3258.8,3256.8,3.68e-06]
[1768781108496,0.15355,3257.6,3256.8,3.68e-06]
[1768781108699,0.15355,3257.6,3256.0,0.20106923]
[1768781108997,0.15351,3258.5,3256.2,0.20106923]
[1768781109199,0.15351,3258.5,3256.6,0.20106923]
[1768781109392,1.98778441,3259.9,3256.5,0.00459939]
[1768781109597,0.00460659,3257.7,3256.5,0.20953463]
[1768781109783,0.1535,3258.8,3256.5,0.20953463]
[1768781109982,0.15346,3259.7,3256.9,0.20106923]
[1768781110186,0.00343097,3259.9,3256.9,0.20106923]
[1768781110486,0.1535,3258.8,3256.9,0.20106923]
[1768781110686,0.00343097,3259.9,3256.9,0.20106923]
[1768781110888,5.07878441,3257.7,3255.4,2.73679456]
[1768781111104,0.1536,3256.6,3255.0,0.20106923]
[1768781111782,0.15647635,3256.6,3255.0,0.20329314]
[1768781111986,0.00460659,3256.1,3255.5,0.00460659]
[1768781112195,0.00460659,3256.1,3255.5,6.59e-06]
[1768781112396,0.15363,3256.0,3254.2,0.20106923]
[1768781112595,0.00460659,3256.1,3254.2,0.20106923]
[1768781112800,1.992391,3256.1,3253.1,0.20106923]
[1768781112990,0.15368,3255.0,3253.1,0.20106923]
[1768781113190,0.15369,3254.7,3253.1,0.20106923]
[1768781113391,0.15364,3255.7,3253.1,0.20426194]
[1768781113586,0.15365,3255.6,3253.7,0.20106923]
[1768781113908,0.15362,3256.2,3253.7,0.20106923]
[1768781114091,0.15362,3256.1,3253.7,0.20106923]
[1768781114401,0.15364,3255.7,3253.7,0.20106923]
[1768781114593,0.00287635,3256.6,3253.7,0.20106923]
[1768781114797,0.15647635,3256.6,3254.1,0.20106923]
[1768781114990,0.1536,3256.5,3254.7,0.20106923]
[1768781115393,0.00287635,3256.6,3254.7,0.20106923]
[1768781115697,1.98778441,3258.6,3255.2,0.20106923]
[1768781116202,1.98778441,3258.6,3253.4,2.149]
[1768781116203,0.1536,3256.6,3253.4,2.149]
[1768781116398,1.992391,3257.2,3253.5,0.20106923]
[1768781116599,3.091,3256.4,3253.5,0.20106923]
[1768781116799,0.15365,3255.6,3253.5,0.20106923]
[1768781117097,0.00289652,3256.4,3254.4,0.20106923]
[1768781117302,0.15650652,3256.4,3254.4,0.20106923]
[1768781117501,0.00289652,3256.4,3254.4,0.20106923]
[1768781117799,0.00460659,3255.7,3255.1,0.00460659]
[1768781118103,0.00289652,3256.4,3255.1,0.20567582]
[1768781118289,0.01821054,3258.3,3255.1,0.20567582]
[1768781118290,0.15353,3258.1,3256.1,0.20106923]
[1768781118609,0.15345,3259.8,3256.6,0.20106923]
[1768781118799,0.15345,3259.7,3256.7,0.20106923]
[1768781119200,0.15345,3259.7,3256.9,0.20106923]
[1768781119201,0.15346,3259.6,3256.9,0.20106923]
[1768781119395,0.00460659,3258.5,3256.9,0.20106923]
[1768781119598,0.00460659,3258.5,3257.9,0.00460659]
[1768781119791,0.00348802,3259.7,3257.9,0.20567582]
[1768781119997,0.15346,3259.5,3257.9,0.20567582]
[1768781120200,0.00348802,3259.7,3257.9,0.20567582]
[1768781120406,0.00348802,3259.7,3258.2,0.20106923]
[1768781120604,0.00348802,3259.7,3257.9,0.00460659]
[1768781120902,0.00348802,3259.7,3257.9,0.20567582]
[1768781121104,0.00348802,3259.7,3258.5,0.20106923]
[1768781121296,1.98778441,3262.3,3258.5,0.20106923]
[1768781121297,0.15335,3261.9,3259.4,0.20106923]
[1768781121497,0.15335,3261.9,3258.7,1.98778441]
[1768781121498,0.15335,3261.9,3259.6,0.20106923]
[1768781121897,0.15339,3261.1,3259.6,0.20106923]
[1768781122302,0.00460659,3260.7,3258.8,0.20106923]
[1768781122499,0.15343,3260.2,3258.0,0.20185482]
[1768781122705,0.00460659,3260.7,3258.0,0.20185482]
[1768781123002,0.00363492,3261.1,3259.2,0.20185482]
[1768781123304,0.00363492,3261.1,3259.2,0.20557474]
[1768781123503,0.00363492,3261.1,3259.6,0.20185482]
[1768781123707,0.15335,3261.9,3260.0,0.20185482]
[1768781123907,0.77507853,3263.3,3260.0,0.20185482]
[1768781124104,0.15334,3262.2,3260.4,0.20185482]
[1768781124293,0.15334,3262.1,3260.4,0.20185482]
[1768781124497,0.15331,3262.7,3260.4,0.20185482]
[1768781124804,0.15335,3261.8,3261.2,8.97e-06]
[1768781124996,0.00459897,3261.9,3260.4,0.20185482]
[1768781125201,0.15336,3261.7,3260.4,0.20185482]
[1768781125595,0.15336,3261.7,3259.2,0.00371992]
[1768781125596,0.15339,3261.1,3259.3,0.20185482]
[1768781126001,0.00459897,3261.9,3259.3,0.20185482]
[1768781126002,0.15337,3261.4,3259.3,0.20185482]
[1768781126199,0.1534,3260.9,3259.9,0.00459897]
[1768781126404,0.15794897,3261.9,3259.9,0.20645379]
[1768781126605,0.00459897,3261.9,3259.9,0.20645379]
[1768781126913,0.1534,3260.9,3259.9,8.97e-06]
[1768781127206,0.15794897,3261.9,3259.9,8.97e-06]
[1768781127414,0.15794897,3261.9,3259.9,0.20186379]
[1768781127601,0.15336,3261.6,3259.9,0.20186379]
[1768781127910,0.00459897,3261.9,3259.9,8.97e-06]
[1768781128212,0.15337,3261.5,3259.9,8.97e-06]
[1768781128412,0.00459897,3261.9,3259.9,8.97e-06]
[1768781129007,1.98778441,3261.5,3258.7,0.20185482]
[1768781129313,0.00459897,3261.9,3258.7,0.20185482]
[1768781129506,0.15337,3261.4,3258.7,0.20185482]
[1768781129708,0.15337,3261.4,3258.8,0.20185482]
[1768781130011,1.98778441,3261.4,3258.8,0.20572223]
[1768781130210,0.15341,3260.7,3259.8,0.00459897]
[1768781130407,0.01312265,3261.8,3258.8,0.20572223]
[1768781130713,1.98778441,3261.3,3258.8,0.00386741]
[1768781130909,0.15344,3260.0,3258.8,0.00386741]
[1768781131114,0.1568759,3260.0,3258.8,0.00386741]
[1768781131503,0.15804897,3259.7,3258.8,7.41e-06]
[1768781131913,0.00459897,3259.7,3256.3,1.98778441]
[1768781132211,0.15348,3259.1,3256.3,1.98778441]
[1768781132512,0.15344,3259.9,3257.7,6.57454866]
[1768781132810,0.0034359,3260.0,3257.9,6.57454866]
[1768781133009,0.0034359,3260.0,3257.7,1.9902874]
[1768781133309,0.15335,3261.9,3258.7,0.1535]
[1768781133511,0.15331,3262.8,3259.5,0.15346]
[1768781133705,0.15333,3262.5,3259.8,1.98778441]
[1768781133902,0.20424909,3263.2,3259.7,0.20185482]
[1768781134207,0.00459897,3261.5,3259.7,0.20185482]
[1768781134506,0.00459897,3261.5,3258.7,0.20185482]
[1768781134507,0.15341,3260.7,3258.7,0.20185482]
[1768781134707,0.00231315,3260.7,3258.7,6.77640348]
[1768781134910,0.00231315,3260.7,3257.8,0.20185482]
[1768781135114,0.00231315,3260.7,3257.5,4.13678441]
[1768781135115,0.00231315,3260.7,3258.3,2.18963923]
[1768781135409,0.00231315,3260.7,3259.0,0.20185482]
[1768781135611,0.15342,3260.4,3258.9,0.00310473]
[1768781136008,0.15343,3260.2,3258.9,0.00310473]
[1768781136511,0.15344,3260.1,3258.9,0.00310473]
[1768781136712,0.00459897,3259.9,3258.9,0.00310473]
[1768781137012,0.15346,3259.6,3258.9,4.73e-06]
[1768781137202,0.15346,3259.6,3257.4,0.20185482]
[1768781137708,0.21142492,3260.7,3257.4,0.20185482]
[1768781137903,3.091,3260.2,3257.4,0.20185482]
[1768781138106,0.19877577,3260.1,3256.6,0.20294539]
[1768781138310,0.00459897,3259.3,3256.6,0.20294539]
[1768781138708,3.091,3258.8,3255.8,0.20294539]
[1768781138905,0.15354,3257.9,3255.8,0.20294539]
[1768781139409,0.15354,3257.9,3255.0,1.98778441]
[1768781139410,0.15354,3257.9,3256.0,0.20294539]
[1768781139613,0.00257017,3257.9,3256.6,0.20294539]
[1768781140116,0.15348,3259.1,3257.1,0.20294539]
[1768781140815,0.15348,3259.1,3257.2,6.57454866]
[1768781141006,0.00460624,3258.4,3256.5,0.20294539]
[1768781141203,0.00703776,3258.4,3255.8,0.00255524]
[1768781141708,0.15356,3257.5,3255.8,0.20550063]
[1768781142105,0.16054776,3258.4,3256.2,6.57454866]
[1768781142317,0.00703776,3258.4,3256.3,0.00460624]
[1768781142705,0.47802652,3258.4,3256.3,0.00460624]
[1768781142907,0.47802652,3258.4,3256.3,6.24e-06]
[1768781143108,0.15359,3256.8,3255.0,0.20294539]
[1768781143314,0.1536,3256.7,3255.0,0.20294539]
[1768781143500,0.15355,3257.6,3255.0,0.20294539]
[1768781143706,0.15355,3257.6,3255.7,0.20294539]
[1768781143908,0.15356,3257.5,3255.7,0.20294539]
[1768781144215,0.19877577,3259.4,3255.7,0.20294539]
[1768781144216,0.15339,3261.1,3257.7,0.20294539]
[1768781144409,0.15333,3262.4,3258.5,0.20294539]
[1768781144604,0.00460624,3259.7,3258.5,0.20294539]
[1768781144816,0.00460624,3259.7,3258.4,0.15351]
[1768781144817,0.15336,3261.6,3259.6,4.76402255]
[1768781145004,0.19877577,3262.5,3259.2,0.20294539]
[1768781145211,0.15338,3261.2,3259.2,0.00293985]
[1768781145414,0.15339,3261.0,3259.2,0.00293985]
[1768781145620,0.19877577,3261.6,3259.2,0.00293985]
[1768781145919,0.15342,3260.4,3257.6,0.20294539]
[1768781146118,0.00460624,3260.7,3257.6,0.20294539]
[1768781146416,0.19877577,3260.2,3256.8,0.20294539]
[1768781146722,3.091,3260.0,3256.8,0.20294539]
[1768781146923,3.091,3259.8,3256.8,0.20550255]
[1768781147119,0.15348,3259.2,3256.8,0.20550255]
[1768781147319,0.00460624,3258.6,3256.8,0.20550255]
[1768781147505,0.15667627,3260.0,3257.5,0.20294539]
[1768781147913,0.00323627,3260.0,3257.8,4.96696794]
[1768781148118,0.00323627,3260.0,3257.8,0.20294539]
[1768781148418,2.149,3261.8,3259.2,0.20294539]
[1768781148616,0.19877577,3262.6,3259.5,0.20294539]
[1768781148809,0.00460624,3260.8,3260.2,0.00460624]
[1768781149208,1.55083824,3262.8,3260.2,0.00460624]
[1768781149410,0.89021066,3262.7,3260.2,0.21023714]
[1768781149610,0.15334,3262.2,3260.2,0.21023714]
[1768781149812,0.00380661,3262.8,3260.2,0.21023714]
[1768781150005,0.15334,3262.1,3260.2,0.00729175]
[1768781150208,0.00380661,3262.8,3260.2,0.21023714]
[1768781150509,0.00380661,3262.8,3260.6,0.20294539]
[1768781150708,0.00380661,3262.8,3260.6,4.96696794]
[1768781151120,0.15333,3262.3,3260.2,0.00729175]
[1768781151315,0.00380661,3262.8,3260.2,0.00729175]
[1768781151519,0.15334,3262.2,3260.2,0.21023714]
[1768781151714,0.00459904,3261.8,3260.2,0.21023714]
[1768781151908,0.00459904,3261.8,3260.4,0.20294539]
[1768781152324,0.00380661,3262.8,3261.1,4.76402255]
[1768781152512,0.00380661,3262.8,3260.7,0.19688911]
[1768781152913,0.00380661,3262.8,3260.8,0.19688911]
[1768781153119,0.00380661,3262.8,3261.3,4.75782955]
[1768781153419,0.00380661,3262.8,3261.7,4.75782955]
[1768781153717,0.00459904,3262.4,3260.2,0.00268551]
[1768781153919,0.20475185,3262.4,3260.2,0.00268551]
[1768781154217,0.20475185,3262.4,3260.7,4.75782955]
[1768781154408,0.00459904,3262.4,3260.9,4.75782955]
[1768781154607,0.00459904,3262.4,3260.3,0.1968224]
[1768781154819,0.00380661,3262.8,3261.4,4.75782955]
[1768781155020,0.20015281,3264.0,3260.5,0.19485642]
[1768781155329,0.20015281,3263.9,3260.7,4.91122955]
[1768781155509,0.20015281,3263.0,3260.2,0.00268551]
[1768781155913,0.00459904,3261.9,3261.3,0.00459904]
[1768781156113,0.20235584,3263.0,3261.8,4.75782955]
[1768781156316,0.00220303,3263.0,3261.7,4.75782955]
[1768781156521,0.20235584,3263.0,3261.3,0.00459904]
[1768781156719,0.00220303,3263.0,3261.6,4.75782955]
[1768781156923,0.20015281,3264.7,3262.8,4.75782955]
[1768781157129,0.20015281,3264.6,3261.4,4.75782955]
[1768781157324,0.00459904,3262.5,3260.5,0.18360976]
[1768781157832,0.00753025,3262.5,3261.2,0.00459904]
[1768781158123,0.36100306,3262.5,3261.2,0.00459904]
[1768781158430,0.00753025,3262.5,3262.1,4.75782955]
[1768781158724,0.00753025,3262.5,3261.7,4.75782955]
[1768781159026,0.00753025,3262.5,3261.2,0.00459904]
[1768781159226,0.00753025,3262.5,3261.2,4.76242859]
[1768781159417,0.20015281,3264.1,3261.2,0.00459904]
[1768781159620,0.20015281,3264.1,3261.3,0.15338]
[1768781159829,0.20015281,3264.1,3261.2,0.00459904]
[1768781160125,0.20015281,3263.9,3261.2,0.00459904]
[1768781160323,0.20015281,3263.3,3261.2,0.00459904]
[1768781160624,0.20292952,3263.3,3261.0,0.15339]
[1768781160822,0.00306593,3262.6,3260.5,0.18616075]
[1768781161023,0.00306593,3262.6,3260.7,4.75782955]
[1768781161229,0.00306593,3262.6,3260.8,4.75782955]
[1768781161525,0.00306593,3262.6,3260.9,4.75782955]
[1768781161728,0.00306593,3262.6,3261.8,4.75782955]
[1768781161933,0.00306593,3262.6,3261.4,0.00459904]
[1768781162225,0.00277671,3263.3,3261.4,0.00459904]
[1768781162419,3.44445281,3263.1,3261.4,0.00459904]
[1768781162617,3.29115281,3263.1,3261.4,0.00459904]
[1768781162825,3.29115281,3263.1,3261.5,4.75782955]
[1768781163026,0.15331,3262.8,3261.4,0.00459904]
[1768781163222,0.00459904,3262.6,3261.4,0.00459904]
[1768781163644,0.00459904,3262.6,3261.6,4.75782955]
[1768781163929,0.15333,3262.3,3261.4,0.00459904]
[1768781164123,3.091,3262.2,3260.5,0.00217801]
[1768781164425,0.00459904,3262.6,3260.5,0.00217801]
[1768781165222,0.00459904,3262.6,3261.5,4.75782955]
[1768781165420,0.00459904,3262.6,3261.2,0.00459904]
[1768781165823,0.00459904,3262.6,3261.9,4.75782955]
[1768781166233,0.00459904,3262.6,3262.5,4.11662645]
[1768781166428,0.00459904,3262.6,3261.4,0.19688911]
[1768781166827,0.15335,3261.9,3261.2,9.04e-06]
[1768781167027,0.00459904,3262.6,3260.7,0.19688911]
[1768781167330,0.00459904,3262.6,3261.0,0.19688911]
[1768781167815,0.15334,3262.1,3260.5,0.00217801]
[1768781168016,0.15337,3261.4,3258.4,0.15351]
[1768781168423,0.1534,3260.8,3257.5,4.93279381]
[1768781168623,0.147374,3261.6,3257.5,5.20037539]
[1768781168818,0.15337,3261.5,3258.6,0.1535]
[1768781169030,0.15714348,3261.5,3258.6,0.00296231]
[1768781169327,0.00377348,3261.5,3259.7,3.7089007]
[1768781169522,0.00377348,3261.5,3259.8,0.15345]
[1768781169727,0.00377348,3261.5,3259.7,0.00459904]
[1768781170323,3.091,3261.4,3258.7,0.19688911]
[1768781171028,0.15343,3260.1,3258.6,0.00296231]
[1768781171223,0.15344,3260.0,3258.6,0.00296231]
[1768781171537,0.15805904,3259.7,3259.0,9.04e-06]
[1768781171736,0.15346,3259.6,3258.6,0.00296231]
[1768781172027,0.15348,3259.2,3257.3,0.19688911]
[1768781172428,0.15348,3259.2,3257.6,3.90119077]
[1768781172633,0.15348,3259.2,3257.6,0.19688911]
[1768781172820,0.15348,3259.1,3258.1,0.00459904]